[Event "FIDE World Cadets GU12 2022"]
[Site "Batumi"]
[Date "2022.09.18"]
[Round "3.1"]
[White "Aydogan, Arya"]
[Black "Preobrazhenskaya, Diana"]
[Result "1-0"]
[ECO "B51"]
[WhiteElo "1489"]
[BlackElo "1994"]
[Annotator "TA"]
[PlyCount "81"]
[EventDate "2022.09.16"]
[EventType "swiss"]
[EventCountry "GEO"]
[SourceTitle "playchess.com"]
[Source "ChessBase"]
[SourceQuality "1"]
[TimeControl "5400+30"]

{[%evp 9,81,16,14,14,21,10,46,23,25,36,46,-35,-27,-31,-24,-44,-29,-45,-37,-74,-52,-50,0,0,61,55,58,52,58,56,63,52,132,127,137,137,135,131,137,51,574,564,636,640,816,770,758,745,1108,1107,1108,1083,1061,954,924,730,1029,1023,1015,1012,1019,1014,985,950,1018,1009,1320,1299,1240,992,1753,915,873,831]} 1. e4 c5 2. Nf3 d6 3. Bb5+ Nd7 4. O-O a6 5. Bd3 Ngf6 6. c3 {B51: Sicilian: Moscow Variation (3 Bb5+) without 3...Bd7.} b5 7. Bc2 c4 8. b3 {White is slightly better.} Bb7 9. Qe2 Qc7 10. d4 (10. bxc4 $14 bxc4 11. Na3) 10... cxd3 $1 $15 11. Bxd3 Nc5 {[%cal Bd7c5,Bc5e6,Be6f4][%mdl 32]} 12. Nbd2 e5 {[#]} 13. Ba3 $146 ({Predecessor:} 13. Bb2 Be7 14. Rac1 O-O 15. c4 b4 16. Ne1 Qc6 17. Nc2 a5 18. Ne3 a4 19. Nd5 Nxd5 20. cxd5 {0-1 (62) Bauyrzhan,A (2075)-Song,Y (2292) New Delhi 2019}) 13... Ne6 14. Rfc1 Nf4 15. Qf1 g5 ({Black should try} 15... d5 $15 16. Bxf8 Kxf8 17. exd5 Re8) 16. c4 (16. Nxg5 $2 Rg8 17. h4 h6 $19) 16... Qd7 (16... g4 $11 17. cxb5 Qa5) 17. cxb5 (17. Nxg5 $2 Rg8 18. Ndf3 h6 19. cxb5 Nxd3 20. Qxd3 axb5 $19) 17... Nxd3 {[%emt 1:23:56]} 18. Qxd3 {[%emt 1:15:30] b6 is the strong threat.} axb5 {[%emt 0:00:30]} 19. Bb4 {[%emt 0:00:30]} Be7 $1 {[%emt 0:08:35]} 20. Rc2 {[%emt 0:03:30] White is more active.} (20. Nxg5 Rg8 21. Ngf3 Nh5 $11) (20. a4 $5) 20... g4 {[%emt 0:02:08]} (20... h6 $14) 21. Nh4 $1 $16 {[%emt 0:01:58]} Nh5 {[%emt 0:04:04] And now ...Nf4 would win.} 22. Nf5 {[%emt 0:00:37]} Nf4 {[%emt 0:01:02] [#]} 23. Qe3 {[%emt 0:05:09]} ({Don't go for} 23. Nxd6+ $2 Kf8 24. Qf1 Bxd6 $19) 23... O-O {[%emt 0:01:00]} 24. Qb6 {[%emt 0:02:46]} (24. h3 $16) 24... Bg5 $2 {[%emt 0:00:42][%mdl 8192] [#] Loses the game.} (24... Rac8 $14 25. Nxe7+ (25. Bxd6 Bg5 $11) 25... Qxe7 26. Rxc8 (26. Bxd6 Qd8 $14) 26... Rxc8) 25. Rc7 $1 $18 {[%emt 0:02:22] White is clearly winning.} Qe6 {[%emt 0:00:28][%cal Ob7e4]} 26. Rxb7 {[%emt 0:00:54]} Nd3 {[%emt 0:00:35]} 27. Qxb5 {[%emt 0:00:30]} Nxb4 {[%emt 0:00:30]} 28. Qxb4 {[%emt 0:00:30]} Rfc8 {[%emt 0:00:25]} 29. Nc4 {[%emt 0:02:04]} d5 {[%emt 0:01:00]} 30. Rb6 {[%emt 0:00:30]} Rc6 {[%emt 0:00:00]} 31. Rxc6 {[%emt 0:01:43]} Qxc6 {[%emt 0:00:30]} 32. Qd6 {[%emt 0:01:30]} Qe8 {[%emt 0:00:21]} 33. Qxd5 {[%emt 0:00:40] Strongly threatening Ncd6.} Rd8 {[%emt 0:00:38]} 34. Qxe5 {[%emt 0:01:05]} Qxe5 {[%emt 0:00:30]} 35. Nxe5 {[%emt 0:00:30] Pair of Knights!} Bf6 {[%emt 0:00:30]} 36. Nh6+ {[%emt 0:00:30]} Kg7 {[%emt 0:00:30]} 37. Nhxg4 {[%emt 0:00:30]} Re8 {[%emt 0:00:30]} 38. Nxf6 {[%emt 0:00:30]} Kxf6 {[%emt 0:00:30]} 39. Nf3 {[%emt 0:00:30]} Rxe4 {[%emt 0:00:30]} 40. h3 {[%emt 0:00:30]} Rb4 {[%emt 0:00:30]} 41. Kf1 {[%emt 0:00:00] Weighted Error Value: White=0.18 (very precise) /Black=0.46} 1-0

[Event "FIDE World Cadets GU12 2022"]
[Site "Batumi"]
[Date "2022.09.18"]
[Round "3.2"]
[White "Imomkuzieva, Nilufarkhon"]
[Black "Kaliakhmet, Elnaz"]
[Result "0-1"]
[ECO "B40"]
[WhiteElo "1481"]
[BlackElo "1864"]
[Annotator "NA COMBH"]
[PlyCount "52"]
[EventDate "2022.09.16"]
[EventType "swiss"]
[EventCountry "GEO"]
[SourceTitle "playchess.com"]
[Source "ChessBase"]
[SourceQuality "1"]
[TimeControl "5400+30"]

1. e4 c5 2. Nf3 e6 3. Nc3 a6 4. h3 b5 5. d4 cxd4 6. Nxd4 Bb7 7. a3 Qc7 8. g4 b4 9. axb4 Bxb4 10. Qd3 d5 11. Bg2 dxe4 12. Bxe4 Bxc3+ 13. bxc3 Qe5 14. f3 Nd7 15. Bf4 Qxf4 16. Bxb7 Rb8 17. Ne2 Qc7 18. Bxa6 Ngf6 19. O-O O-O 20. Qe3 Nd5 21. Qd4 Rfd8 22. Bd3 Nc5 23. Rfd1 Nxd3 24. cxd3 Rb2 25. Qe4 Nxc3 26. Nxc3 Qg3+ 0-1

[Event "FIDE World Cadets GU12 2022"]
[Site "Batumi"]
[Date "2022.09.18"]
[Round "3.3"]
[White "Hariharan, Shambavi"]
[Black "Mgeladze, Kesaria"]
[Result "0-1"]
[ECO "A45"]
[WhiteElo "1465"]
[BlackElo "1771"]
[Annotator "NA COMBH"]
[PlyCount "92"]
[EventDate "2022.09.16"]
[EventType "swiss"]
[EventCountry "GEO"]
[SourceTitle "playchess.com"]
[Source "ChessBase"]
[SourceQuality "1"]
[TimeControl "5400+30"]

1. d4 Nf6 2. Bf4 g6 3. Nc3 d5 4. e3 a6 5. Be2 Bg7 6. h4 h5 7. Nf3 Bg4 8. Ne5 Bxe2 9. Qxe2 Nbd7 10. Qd2 c6 11. Nd3 Ne4 12. Qc1 Nxc3 13. bxc3 O-O 14. Qb2 b5 15. O-O Nb6 16. Qc1 Na4 17. Qd2 Qa5 18. Nb4 Rac8 19. Rfe1 e6 20. Nd3 c5 21. Bd6 Rfd8 {[%emt 1:24:36]} 22. Be5 {[%emt 1:15:30]} Bxe5 {[%emt 0:00:30]} 23. Nxe5 {[%emt 0:00:30]} Qxc3 {[%emt 0:00:03]} 24. Qd1 {[%emt 0:01:30]} cxd4 {[%emt 0:01:25]} 25. Qf3 {[%emt 0:01:30]} Qc7 {[%emt 0:01:43]} 26. exd4 {[%emt 0:00:30]} Qe7 {[%emt 0:01:24]} 27. Rac1 {[%emt 0:00:30]} Kg7 {[%emt 0:00:57]} 28. g3 {[%emt 0:00:30]} Rc3 {[%emt 0:00:55]} 29. Qd1 {[%emt 0:01:30]} Rdc8 {[%emt 0:00:30]} 30. Re3 {[%emt 0:00:30]} Rxe3 {[%emt 0:00:30]} 31. fxe3 {[%emt 0:00:30]} Nc3 {[%emt 0:00:00]} 32. Qf3 {[%emt 0:00:30]} Ne4 {[%emt 0:00:49]} 33. Kg2 {[%emt 0:05:30]} Rc3 {[%emt 0:01:01]} 34. Qe2 {[%emt 0:02:42]} Qc7 {[%emt 0:01:20]} 35. Qf3 {[%emt 0:01:21]} Rxc2+ {[%emt 0:01:56]} 36. Rxc2 {[%emt 0:00:30]} Qxc2+ {[%emt 0:00:30]} 37. Kg1 {[%emt 0:00:30]} f6 {[%emt 0:00:30]} 38. Nd7 {[%emt 0:00:30]} Qb1+ {[%emt 0:00:30]} 39. Kg2 {[%emt 0:00:30]} Qxa2+ {[%emt 0:00:30]} 40. Kg1 {[%emt 0:00:30]} b4 {[%emt 0:00:00]} 41. Nc5 {[%emt 0:01:04]} Nxc5 {[%emt 0:00:00]} 42. dxc5 {[%emt 0:00:00]} Qb1+ {[%emt 0:00:01]} 43. Kh2 {[%emt 0:00:26]} Qc2+ {[%emt 0:00:30]} 44. Qg2 {[%emt 0:00:30]} b3 {[%emt 0:00:30]} 45. c6 {[%emt 0:00:30]} Qxc6 {[%emt 0:00:30]} 46. Qb2 {[%emt 0:00:30]} Qc2+ 0-1

[Event "FIDE World Cadets GU12 2022"]
[Site "Batumi"]
[Date "2022.09.18"]
[Round "3.4"]
[White "Yousefian, Maedeh"]
[Black "Krkyasharyan, Sona"]
[Result "1-0"]
[ECO "B21"]
[WhiteElo "1765"]
[BlackElo "1484"]
[Annotator "NA COMBH"]
[PlyCount "63"]
[EventDate "2022.09.16"]
[EventType "swiss"]
[EventCountry "GEO"]
[SourceTitle "playchess.com"]
[Source "ChessBase"]
[SourceQuality "1"]
[TimeControl "5400+30"]

1. e4 c5 2. d4 cxd4 3. c3 dxc3 4. Nxc3 Nc6 5. Nf3 g6 6. Bc4 Bg7 7. O-O Nf6 8. e5 Ng8 9. Bf4 e6 10. Ne4 Nge7 11. Nd6+ Kf8 12. Ng5 Qc7 13. Ngxf7 Rg8 14. Bh6 Nf5 15. Bf4 Nxd6 16. exd6 Qa5 {[%emt 1:11:30]} 17. Ng5 {[%emt 1:28:22]} Qf5 {[%emt 0:07:30]} 18. Be3 {[%emt 0:04:01]} h6 {[%emt 0:00:46]} 19. g4 {[%emt 0:04:11]} Qe5 {[%emt 0:02:30]} 20. Qf3+ {[%emt 0:00:06]} Bf6 {[%emt 0:01:04]} 21. Nh7+ {[%emt 0:01:37]} Kg7 {[%emt 0:02:04]} 22. Nxf6 {[%emt 0:00:30]} Qxf6 {[%emt 0:00:30]} 23. Bxh6+ {[%emt 0:00:30]} Kf7 {[%emt 0:00:00]} 24. Qxf6+ {[%emt 0:00:11]} Kxf6 {[%emt 0:00:00]} 25. f4 {[%emt 0:00:47]} b6 {[%emt 0:00:00]} 26. g5+ {[%emt 0:01:53]} Kf7 {[%emt 0:00:36]} 27. f5 {[%emt 0:00:07]} gxf5 {[%emt 0:01:14]} 28. Rxf5+ {[%emt 0:00:30]} Kg6 {[%emt 0:00:30]} 29. Rf6+ {[%emt 0:00:00]} Kh7 {[%emt 0:00:28]} 30. Bd3+ {[%emt 0:00:17]} Kh8 {[%emt 0:00:30]} 31. Rf7 {[%emt 0:00:30]} Re8 {[%emt 0:00:23]} 32. Raf1 {[%emt 0:00:48]} 1-0

[Event "FIDE World Cadets GU12 2022"]
[Site "Batumi"]
[Date "2022.09.18"]
[Round "3.5"]
[White "Kholyavko, Mariya"]
[Black "Shubhi Gupta"]
[Result "0-1"]
[ECO "C47"]
[WhiteElo "1421"]
[BlackElo "1733"]
[Annotator "NA COMBH"]
[PlyCount "52"]
[EventDate "2022.09.16"]
[EventType "swiss"]
[EventCountry "GEO"]
[SourceTitle "playchess.com"]
[Source "ChessBase"]
[SourceQuality "1"]
[TimeControl "5400+30"]

1. e4 {[%emt 0:01:00]} e5 {[%emt 0:03:00]} 2. Nf3 {[%emt 0:00:30]} Nc6 {[%emt 0:00:30]} 3. d4 {[%emt 0:00:00]} exd4 {[%emt 0:00:30]} 4. Nxd4 {[%emt 0:00:00]} Bc5 {[%emt 0:00:30]} 5. Nxc6 {[%emt 0:00:00]} bxc6 {[%emt 0:01:30]} 6. Bd3 {[%emt 0:00:00]} d6 {[%emt 0:00:30]} 7. Nc3 {[%emt 0:00:00]} Nf6 {[%emt 0:00:30]} 8. O-O {[%emt 0:00:00]} O-O {[%emt 0:01:30]} 9. Na4 {[%emt 0:01:30]} Bb6 {[%emt 0:02:30]} 10. c4 {[%emt 0:02:30]} Bd4 {[%emt 0:06:30]} 11. Bc2 {[%emt 0:01:30]} c5 {[%emt 0:01:30]} 12. Nc3 {[%emt 0:01:30]} c6 {[%emt 0:02:30]} 13. Bg5 {[%emt 0:03:30]} h6 {[%emt 0:02:30]} 14. Bh4 {[%emt 0:00:30]} Rb8 {[%emt 0:00:30]} 15. Rb1 {[%emt 0:00:30]} Be6 {[%emt 0:03:30]} 16. Qd3 {[%emt 0:02:30]} Re8 {[%emt 0:02:30]} 17. b3 {[%emt 0:02:30]} Be5 {[%emt 0:02:30]} 18. f4 {[%emt 0:00:30]} Bd4+ {[%emt 0:00:30]} 19. Kh1 {[%emt 0:00:30]} Bf5 {[%emt 0:05:30]} 20. Rbe1 {[%emt 0:04:30]} Nxe4 {[%emt 0:06:30]} 21. Nxe4 {[%emt 0:13:30]} Qxh4 {[%emt 0:07:30]} 22. Qf3 {[%emt 0:01:30]} d5 {[%emt 0:06:30]} 23. g3 {[%emt 0:04:30]} Qg4 {[%emt 0:03:30]} 24. Qxg4 {[%emt 0:02:30]} Bxg4 {[%emt 0:00:30]} 25. Nd2 {[%emt 0:00:00]} Rxe1 {[%emt 0:00:00]} 26. Rxe1 {[%emt 0:00:00]} Bc3 {[%emt 0:00:00]} 0-1

[Event "FIDE World Cadets GU12 2022"]
[Site "Batumi"]
[Date "2022.09.18"]
[Round "3.6"]
[White "Zhumagali, Raian"]
[Black "Merkulova, Victoria"]
[Result "0-1"]
[ECO "B78"]
[WhiteElo "1278"]
[BlackElo "1715"]
[Annotator "NA COMBH"]
[PlyCount "42"]
[EventDate "2022.09.16"]
[EventType "swiss"]
[EventCountry "GEO"]
[SourceTitle "playchess.com"]
[Source "ChessBase"]
[SourceQuality "1"]
[TimeControl "5400+30"]

1. e4 {[%emt 0:02:00]} c5 {[%emt 0:01:00]} 2. Nf3 {[%emt 0:00:30]} d6 {[%emt 0:00:00]} 3. d4 {[%emt 0:00:30]} cxd4 {[%emt 0:00:00]} 4. Nxd4 {[%emt 0:00:30]} Nf6 {[%emt 0:00:30]} 5. Nc3 {[%emt 0:00:30]} g6 {[%emt 0:00:00]} 6. Be3 {[%emt 0:00:30]} Bg7 {[%emt 0:00:00]} 7. Bc4 {[%emt 0:09:30]} O-O {[%emt 0:05:30]} 8. f3 {[%emt 0:00:30]} Nc6 {[%emt 0:02:30]} 9. Qd2 {[%emt 0:02:30]} Bd7 {[%emt 0:00:00]} 10. O-O-O {[%emt 0:00:30]} Rb8 {[%emt 0:01:00]} 11. Nxc6 {[%emt 0:05:30]} bxc6 {[%emt 0:02:30]} 12. Bxa7 {[%emt 0:00:30]} Rb4 {[%emt 0:03:30]} 13. Be2 {[%emt 0:08:30]} Qa5 {[%emt 0:02:30]} 14. Be3 {[%emt 0:10:30]} Rxb2 {[%emt 0:02:30]} 15. Qd3 {[%emt 0:22:30]} Nxe4 {[%emt 0:04:30]} 16. fxe4 {[%emt 0:06:30]} Bxc3 {[%emt 0:00:30]} 17. Rdf1 {[%emt 0:18:01]} Rb1+ {[%emt 0:00:30]} 18. Kxb1 {[%emt 0:00:11]} Rb8+ {[%emt 0:00:30]} 19. Qb5 {[%emt 0:01:12]} Rxb5+ {[%emt 0:00:30]} 20. Bxb5 {[%emt 0:00:05]} Qa3 {[%emt 0:00:30]} 21. Bc1 {[%emt 0:00:48]} Qb4+ {[%emt 0:00:00]} 0-1

[Event "FIDE World Cadets GU12 2022"]
[Site "Batumi"]
[Date "2022.09.18"]
[Round "3.7"]
[White "Huseynova, Lala"]
[Black "Abramkina, Veranika"]
[Result "1/2-1/2"]
[ECO "B15"]
[WhiteElo "1702"]
[BlackElo "1445"]
[Annotator "NA COMBH"]
[PlyCount "247"]
[EventDate "2022.09.16"]
[EventType "swiss"]
[EventCountry "GEO"]
[SourceTitle "playchess.com"]
[Source "ChessBase"]
[SourceQuality "1"]
[TimeControl "5400+30"]

1. e4 g6 2. d4 Bg7 3. Nc3 c6 4. Nf3 d5 5. h3 dxe4 6. Nxe4 Nd7 7. Bc4 Ngf6 8. Nxf6+ Nxf6 9. O-O O-O 10. Bf4 Bf5 11. Qe2 Be4 12. c3 Bxf3 13. Qxf3 Qb6 14. Rfe1 e6 15. a4 a5 16. h4 h5 17. Bd6 Rfe8 18. Qg3 Qxb2 19. Rab1 Qc2 20. Rxb7 {[%emt 1:38:19]} Qd2 {[%emt 0:57:30]} 21. Qe3 {[%emt 0:00:30]} Bh6 {[%emt 0:00:30]} 22. f4 {[%emt 0:00:30]} Qxe3+ {[%emt 0:00:30]} 23. Rxe3 {[%emt 0:00:30]} Nd5 {[%emt 0:00:30]} 24. Bxd5 {[%emt 0:00:30]} cxd5 {[%emt 0:00:30]} 25. Re1 {[%emt 0:00:52]} Rec8 {[%emt 0:01:30]} 26. Rc7 {[%emt 0:00:55]} Bf8 {[%emt 0:05:30]} 27. Be5 {[%emt 0:00:30]} Rcb8 {[%emt 0:00:30]} 28. Rc1 {[%emt 0:00:41]} Bg7 {[%emt 0:04:30]} 29. Bd6 {[%emt 0:00:24]} Rb2 {[%emt 0:01:30]} 30. Ra1 {[%emt 0:01:08]} Rc2 {[%emt 0:00:00]} 31. Kf1 {[%emt 0:00:16]} Ra6 {[%emt 0:01:00]} 32. Ba3 {[%emt 0:00:43]} Bxd4 {[%emt 0:00:30]} 33. Rc8+ {[%emt 0:00:30]} Kg7 {[%emt 0:00:30]} 34. Rb1 {[%emt 0:00:36]} Rxc3 {[%emt 0:00:30]} 35. Bf8+ {[%emt 0:00:30]} Kf6 {[%emt 0:00:00]} 36. Rd8 {[%emt 0:00:14]} Rb6 {[%emt 0:01:00]} 37. Rd1 {[%emt 0:00:02]} Be3 {[%emt 0:00:30]} 38. Bh6 {[%emt 0:00:30]} Rc1 {[%emt 0:00:30]} 39. Rxc1 {[%emt 0:00:32]} Bxc1 {[%emt 0:00:30]} 40. Ra8 {[%emt 0:00:01]} Bd2 {[%emt 0:00:30]} 41. Bg5+ {[%emt 0:00:30]} Kg7 {[%emt 0:00:30]} 42. Bd8 {[%emt 0:00:30]} Rb1+ {[%emt 0:00:30]} 43. Ke2 {[%emt 0:00:00]} Rb2 {[%emt 0:00:30]} 44. Kd3 {[%emt 0:00:19]} Bxf4 {[%emt 0:00:30]} 45. Bxa5 {[%emt 0:00:30]} e5 {[%emt 0:00:30]} 46. Bc3 {[%emt 0:00:09]} Rxg2 {[%emt 0:00:30]} 47. a5 {[%emt 0:00:30]} Rg3+ {[%emt 0:00:30]} 48. Kc2 {[%emt 0:00:30]} d4 {[%emt 0:00:30]} 49. Bb4 {[%emt 0:00:30]} d3+ {[%emt 0:00:30]} 50. Kb2 {[%emt 0:00:30]} Rg2+ {[%emt 0:00:00]} 51. Kb3 {[%emt 0:00:07]} Rg1 {[%emt 0:01:00]} 52. Rd8 {[%emt 0:00:30]} d2 {[%emt 0:00:30]} 53. Bxd2 {[%emt 0:00:30]} Bxd2 {[%emt 0:00:30]} 54. Rxd2 {[%emt 0:00:30]} Ra1 {[%emt 0:00:30]} 55. Ra2 {[%emt 0:00:30]} Rb1+ {[%emt 0:00:30]} 56. Kc4 {[%emt 0:00:00]} f5 {[%emt 0:00:30]} 57. a6 {[%emt 0:00:00]} Rb8 {[%emt 0:00:30]} 58. a7 {[%emt 0:00:16]} Ra8 {[%emt 0:00:30]} 59. Kb5 {[%emt 0:00:30]} g5 {[%emt 0:00:30]} 60. hxg5 {[%emt 0:00:46]} Kg6 {[%emt 0:00:30]} 61. Kb6 {[%emt 0:00:30]} Kxg5 {[%emt 0:00:30]} 62. Kb7 {[%emt 0:00:30]} Rxa7+ {[%emt 0:00:30]} 63. Kxa7 {[%emt 0:00:30]} Kg4 {[%emt 0:00:30]} 64. Kb6 {[%emt 0:00:30]} f4 {[%emt 0:00:00]} 65. Kc5 {[%emt 0:00:00]} Kg3 {[%emt 0:00:00]} 66. Kc4 {[%emt 0:00:00]} f3 {[%emt 0:00:30]} 67. Kd3 {[%emt 0:00:05]} h4 {[%emt 0:00:30]} 68. Ke3 {[%emt 0:00:30]} h3 {[%emt 0:00:30]} 69. Ra8 {[%emt 0:00:23]} h2 {[%emt 0:10:30]} 70. Rg8+ {[%emt 0:00:30]} Kh3 {[%emt 0:00:30]} 71. Kf2 {[%emt 0:00:35]} h1=N+ {[%emt 0:00:30]} 72. Kxf3 {[%emt 0:00:09]} e4+ {[%emt 0:00:30]} 73. Kxe4 {[%emt 0:00:48]} Ng3+ {[%emt 0:00:30]} 74. Kf3 {[%emt 0:00:33]} Nh5 {[%emt 0:00:30]} 75. Rg4 {[%emt 0:00:30]} Nf6 {[%emt 0:00:00]} 76. Ra4 {[%emt 0:04:16]} Nh5 {[%emt 0:00:00]} 77. Ra1 {[%emt 0:00:30]} Kh4 {[%emt 0:00:30]} 78. Ra5 {[%emt 0:00:00]} Nf6 {[%emt 0:00:30]} 79. Rf5 {[%emt 0:00:05]} Nh5 {[%emt 0:00:30]} 80. Rb5 {[%emt 0:00:30]} Nf6 {[%emt 0:00:30]} 81. Ra5 {[%emt 0:00:30]} Nh5 {[%emt 0:00:30]} 82. Rf5 {[%emt 0:00:30]} Ng7 {[%emt 0:00:00]} 83. Rf7 {[%emt 0:00:18]} Nh5 {[%emt 0:00:00]} 84. Rf5 {[%emt 0:00:41]} Ng7 {[%emt 0:00:00]} 85. Re5 {[%emt 0:00:26]} Nh5 {[%emt 0:00:00]} 86. Kg2 {[%emt 0:00:30]} Kg4 {[%emt 0:00:00]} 87. Re4+ {[%emt 0:00:56]} Nf4+ {[%emt 0:00:00]} 88. Kf2 {[%emt 0:00:30]} Kf5 {[%emt 0:00:00]} 89. Kf3 {[%emt 0:00:30]} Ng6 {[%emt 0:00:00]} 90. Ra4 {[%emt 0:00:30]} Ne5+ {[%emt 0:00:30]} 91. Ke3 {[%emt 0:00:30]} Ng4+ {[%emt 0:00:30]} 92. Kf3 {[%emt 0:00:30]} Ne5+ {[%emt 0:00:30]} 93. Kg3 {[%emt 0:00:30]} Ng6 {[%emt 0:00:00]} 94. Ra5+ {[%emt 0:00:00]} Ne5 {[%emt 0:00:00]} 95. Rb5 {[%emt 0:00:00]} Ke4 {[%emt 0:00:00]} 96. Kf2 {[%emt 0:00:00]} Nd3+ {[%emt 0:00:00]} 97. Ke2 {[%emt 0:00:00]} Nf4+ {[%emt 0:00:30]} 98. Kd2 {[%emt 0:00:11]} Nd5 {[%emt 0:00:30]} 99. Ra5 {[%emt 0:00:00]} Kd4 {[%emt 0:00:00]} 100. Ra4+ {[%emt 0:00:00]} Ke5 {[%emt 0:00:00]} 101. Kd3 {[%emt 0:00:00]} Nf4+ {[%emt 0:00:00]} 102. Kc4 {[%emt 0:00:00]} Ke4 {[%emt 0:00:00]} 103. Ra8 {[%emt 0:00:00]} Ng6 {[%emt 0:00:00]} 104. Re8+ {[%emt 0:00:08]} Ne5+ {[%emt 0:00:00]} 105. Kc5 {[%emt 0:00:00]} Kf4 {[%emt 0:00:00]} 106. Kd5 {[%emt 0:00:00]} Nf3 {[%emt 0:00:00]} 107. Re2 {[%emt 0:00:18]} Ng5 {[%emt 0:00:00]} 108. Kd4 {[%emt 0:00:30]} Nf3+ {[%emt 0:00:00]} 109. Kd5 {[%emt 0:00:30]} Ng5 {[%emt 0:00:00]} 110. Re8 {[%emt 0:00:00]} Nf3 {[%emt 0:00:00]} 111. Rf8+ {[%emt 0:00:06]} Ke3 {[%emt 0:00:30]} 112. Rf5 {[%emt 0:00:00]} Nd2 {[%emt 0:00:30]} 113. Re5+ {[%emt 0:00:08]} Kf4 {[%emt 0:00:00]} 114. Re1 {[%emt 0:00:22]} Nf3 {[%emt 0:00:00]} 115. Re2 {[%emt 0:00:19]} Ng5 {[%emt 0:00:30]} 116. Kd4 {[%emt 0:00:30]} Nf3+ {[%emt 0:00:30]} 117. Kd5 {[%emt 0:00:30]} Ng5 {[%emt 0:00:30]} 118. Ra2 {[%emt 0:00:34]} Nf3 {[%emt 0:00:00]} 119. Ra3 {[%emt 0:00:14]} Ng5 {[%emt 0:00:00]} 120. Ra4+ {[%emt 0:00:30]} Kf5 {[%emt 0:00:30]} 121. Rh4 {[%emt 0:00:30]} Nf3 {[%emt 0:00:00]} 122. Rh1 {[%emt 0:00:00]} Kf4 {[%emt 0:00:00]} 123. Rf1 {[%emt 0:00:23]} Ke3 {[%emt 0:00:30]} 124. Ke6 {[%emt 0:00:00]} 1/2-1/2

[Event "FIDE World Cadets GU12 2022"]
[Site "Batumi"]
[Date "2022.09.18"]
[Round "3.8"]
[White "Maklakova, Naomi"]
[Black "Altynbek, Aiaru"]
[Result "1/2-1/2"]
[ECO "D02"]
[WhiteElo "1635"]
[BlackElo "1373"]
[Annotator "NA COMBH"]
[PlyCount "95"]
[EventDate "2022.09.16"]
[EventType "swiss"]
[EventCountry "GEO"]
[SourceTitle "playchess.com"]
[Source "ChessBase"]
[SourceQuality "1"]
[TimeControl "5400+30"]

1. d4 d5 2. Nf3 Nf6 3. c3 c5 4. dxc5 a5 5. e3 Qc7 6. b4 Bg4 7. Bb2 Nc6 8. a3 Rd8 9. Nbd2 e5 10. Be2 Be7 11. O-O O-O 12. Re1 Rfe8 13. h3 Bh5 14. Qb3 Rd7 {[%emt 1:19:27]} 15. Nf1 {[%emt 1:30:04]} Red8 {[%emt 0:02:59]} 16. Ng3 {[%emt 0:00:20]} Bg6 {[%emt 0:02:14]} 17. Bb5 {[%emt 0:01:58]} Nh5 {[%emt 0:04:15]} 18. Nf1 {[%emt 0:01:44]} Nf6 {[%emt 0:03:59]} 19. Ba4 {[%emt 0:01:09]} axb4 {[%emt 0:03:04]} 20. cxb4 {[%emt 0:00:10]} d4 {[%emt 0:03:23]} 21. Bxc6 {[%emt 0:01:29]} bxc6 {[%emt 0:00:30]} 22. exd4 {[%emt 0:00:30]} e4 {[%emt 0:01:03]} 23. Ne5 {[%emt 0:02:01]} Rd5 {[%emt 0:00:18]} 24. Ne3 {[%emt 0:00:36]} Rxe5 {[%emt 0:00:30]} 25. dxe5 {[%emt 0:00:30]} Nh5 {[%emt 0:00:30]} 26. Rad1 {[%emt 0:00:30]} Rb8 {[%emt 0:00:04]} 27. Qc3 {[%emt 0:00:09]} Qc8 {[%emt 0:00:30]} 28. a4 {[%emt 0:00:30]} Nf4 {[%emt 0:00:18]} 29. Ng4 {[%emt 0:01:04]} h5 {[%emt 0:01:24]} 30. Nh2 {[%emt 0:00:30]} Nd3 {[%emt 0:00:00]} 31. Re3 {[%emt 0:00:28]} Rxb4 {[%emt 0:00:30]} 32. Rexd3 {[%emt 0:00:30]} Rxb2 {[%emt 0:00:30]} 33. Qxb2 {[%emt 0:00:30]} exd3 {[%emt 0:00:30]} 34. Qb6 {[%emt 0:00:30]} Bd8 {[%emt 0:00:30]} 35. Qa7 {[%emt 0:00:30]} Bc7 {[%emt 0:00:07]} 36. Nf3 {[%emt 0:00:18]} Be4 {[%emt 0:01:00]} 37. Ng5 {[%emt 0:00:24]} Bg6 {[%emt 0:00:51]} 38. e6 {[%emt 0:00:41]} fxe6 {[%emt 0:00:33]} 39. Nxe6 {[%emt 0:00:30]} Qxe6 {[%emt 0:00:07]} 40. Qxc7 {[%emt 0:00:20]} Qe2 {[%emt 0:00:30]} 41. Qb8+ {[%emt 0:00:30]} Kh7 {[%emt 0:00:30]} 42. Qb3 {[%emt 0:00:00]} d2 {[%emt 0:00:00]} 43. Qf3 {[%emt 0:01:02]} Qe1+ {[%emt 0:00:07]} 44. Kh2 {[%emt 0:00:12]} Bc2 {[%emt 0:00:30]} 45. Qxh5+ {[%emt 0:00:30]} Kg8 {[%emt 0:00:30]} 46. Rxd2 {[%emt 0:00:30]} Qxd2 {[%emt 0:00:30]} 47. Qe8+ {[%emt 0:00:30]} Kh7 {[%emt 0:00:00]} 48. Qxc6 {[%emt 0:00:04]} 1/2-1/2

[Event "FIDE World Cadets GU12 2022"]
[Site "Batumi"]
[Date "2022.09.18"]
[Round "3.9"]
[White "Gan, Emily Cathay"]
[Black "Semenova, Vasilisa"]
[Result "1/2-1/2"]
[ECO "A17"]
[WhiteElo "1550"]
[BlackElo "1332"]
[Annotator "NA COMBH"]
[PlyCount "70"]
[EventDate "2022.09.16"]
[EventType "swiss"]
[EventCountry "GEO"]
[SourceTitle "playchess.com"]
[Source "ChessBase"]
[SourceQuality "1"]
[TimeControl "5400+30"]

1. c4 {[%emt 0:01:00]} e6 {[%emt 0:01:00]} 2. Nc3 {[%emt 0:00:30]} d5 {[%emt 0:00:00]} 3. d4 {[%emt 0:00:00]} c6 {[%emt 0:00:00]} 4. cxd5 {[%emt 0:01:00]} exd5 {[%emt 0:00:30]} 5. Nf3 {[%emt 0:00:30]} Bf5 {[%emt 0:00:30]} 6. g3 {[%emt 0:00:30]} Nd7 {[%emt 0:00:30]} 7. Bg2 {[%emt 0:00:30]} Bd6 {[%emt 0:00:30]} 8. O-O {[%emt 0:00:30]} Ngf6 {[%emt 0:00:30]} 9. Ne1 {[%emt 0:02:30]} O-O {[%emt 0:01:30]} 10. f3 {[%emt 0:05:30]} Re8 {[%emt 0:00:30]} 11. Nc2 {[%emt 0:00:30]} Qb6 {[%emt 0:02:30]} 12. e3 {[%emt 0:01:30]} Bxc2 {[%emt 0:04:30]} 13. Qxc2 {[%emt 0:00:30]} c5 {[%emt 0:01:30]} 14. Qf2 {[%emt 0:05:30]} cxd4 {[%emt 0:00:30]} 15. exd4 {[%emt 0:00:00]} h6 {[%emt 0:02:30]} 16. Be3 {[%emt 0:04:00]} Rac8 {[%emt 0:00:30]} 17. Rac1 {[%emt 0:12:30]} Bb4 {[%emt 0:04:30]} 18. Bd2 {[%emt 0:05:30]} Bxc3 {[%emt 0:02:30]} 19. Bxc3 {[%emt 0:00:30]} Qa6 {[%emt 0:01:30]} 20. Qc2 {[%emt 0:08:30]} Qxa2 {[%emt 0:07:30]} 21. Ra1 {[%emt 0:00:30]} Qc4 {[%emt 0:00:00]} 22. Rxa7 {[%emt 0:02:30]} Qxd4+ {[%emt 0:00:00]} 23. Bxd4 {[%emt 0:00:00]} Rxc2 {[%emt 0:00:30]} 24. Rxb7 {[%emt 0:00:00]} Ree2 {[%emt 0:01:30]} 25. Rf2 {[%emt 0:00:30]} Rxf2 {[%emt 0:01:30]} 26. Bxf2 {[%emt 0:00:30]} Rc1+ {[%emt 0:10:30]} 27. Bf1 {[%emt 0:00:30]} Kf8 {[%emt 0:04:30]} 28. b4 {[%emt 0:01:30]} Rd1 {[%emt 0:06:30]} 29. Rc7 {[%emt 0:02:30]} d4 {[%emt 0:01:30]} 30. Kg2 {[%emt 0:02:30]} d3 {[%emt 0:00:00]} 31. Rc3 {[%emt 0:05:30]} d2 {[%emt 0:00:00]} 32. Rd3 {[%emt 0:01:30]} Rb1 {[%emt 0:01:30]} 33. Rxd2 {[%emt 0:00:30]} Rxb4 {[%emt 0:00:00]} 34. Bd3 {[%emt 0:00:30]} g6 {[%emt 0:01:00]} 35. Be3 {[%emt 0:01:30]} Kg7 1/2-1/2